[Event "CZE-ch Youth G10-G12-G14 2022"]
[Site "Luhacovice"]
[Date "2022.03.12"]
[Round "1.25"]
[White "Kavanova Valentyna"]
[Black "Stehlikova, Vanessa"]
[Result "1/2-1/2"]
[ECO "D37"]
[WhiteElo "1000"]
[BlackElo "1039"]
[Annotator "NA"]
[PlyCount "211"]
[EventDate "2022.03.12"]
[EventType "swiss"]
[EventCountry "CZE"]
[SourceTitle "playchess.com"]
[Source "ChessBase"]
[SourceQuality "1"]
[TimeControl "40/5400+30:1800+30"]

1. d4 {[%emt 0:00:04]} d5 {[%emt 0:00:15]} 2. c4 {[%emt 0:00:13]} e6 {[%emt 0:00:36]} 3. Nc3 {[%emt 0:00:21]} Nf6 {[%emt 0:01:28]} 4. Nf3 {[%emt 0:00:50]} Be7 {[%emt 0:01:41]} 5. e3 {[%emt 0:00:49]} O-O {[%emt 0:01:53]} 6. Bd3 {[%emt 0:00:30]} h6 {[%emt 0:02:23]} 7. O-O {[%emt 0:00:52]} Nbd7 {[%emt 0:00:34]} 8. a3 {[%emt 0:00:51]} c6 {[%emt 0:02:45]} 9. b4 {[%emt 0:00:41]} Bd6 {[%emt 0:02:52]} 10. c5 {[%emt 0:00:40]} Bc7 {[%emt 0:00:14]} 11. Bd2 {[%emt 0:03:04]} e5 {[%emt 0:00:23]} 12. Re1 {[%emt 0:00:50]} e4 {[%emt 0:00:14]} 13. Ne5 {[%emt 0:01:16]} exd3 {[%emt 0:00:26]} 14. Nxd3 {[%emt 0:02:07]} Ne4 {[%emt 0:01:43]} 15. Nxe4 {[%emt 0:02:53]} dxe4 {[%emt 0:00:09]} 16. Nf4 {[%emt 0:01:06]} Bxf4 {[%emt 0:01:07]} 17. exf4 {[%emt 0:00:08]} Re8 {[%emt 0:00:10]} 18. Qc2 {[%emt 0:01:04]} Nf6 {[%emt 0:00:53]} 19. a4 {[%emt 0:01:35]} Qxd4 {[%emt 0:00:27]} 20. Bc3 {[%emt 0:04:43]} Qc4 {[%emt 0:01:06]} 21. Rac1 {[%emt 0:01:35]} Qd3 {[%emt 0:02:33]} 22. Qxd3 {[%emt 0:00:25]} exd3 {[%emt 0:00:05]} 23. Bxf6 {[%emt 0:01:21]} Rxe1+ {[%emt 0:00:07]} 24. Rxe1 {[%emt 0:01:32]} gxf6 {[%emt 0:00:07]} 25. Re8+ {[%emt 0:01:57]} Kg7 {[%emt 0:00:10]} 26. Rd8 {[%emt 0:00:26]} b6 {[%emt 0:01:15]} 27. Rxd3 {[%emt 0:02:04]} Ba6 {[%emt 0:00:31]} 28. Rb3 {[%emt 0:00:30]} Re8 {[%emt 0:00:44]} 29. h3 {[%emt 0:00:47]} Re1+ {[%emt 0:00:34]} 30. Kh2 {[%emt 0:01:15]} b5 {[%emt 0:00:39]} 31. a5 {[%emt 0:00:55]} Bc8 {[%emt 0:00:24]} 32. Rg3+ {[%emt 0:01:17]} Kh7 {[%emt 0:00:47]} 33. Rd3 {[%emt 0:03:23]} Re4 {[%emt 0:00:37]} 34. Rd6 {[%emt 0:00:50]} Rxf4 {[%emt 0:00:16]} 35. Rxc6 {[%emt 0:00:07]} Be6 {[%emt 0:07:36]} 36. Ra6 {[%emt 0:02:21]} Rxb4 {[%emt 0:00:15]} 37. c6 {[%emt 0:01:42]} Rc4 {[%emt 0:01:16]} 38. f4 {[%emt 0:02:48]} f5 {[%emt 0:00:20]} 39. g4 {[%emt 0:00:44]} Rc2+ {[%emt 0:00:09]} 40. Kg3 {[%emt 0:00:09]} Rc3+ {[%emt 0:00:26]} 41. Kh2 {[%emt 0:32:06]} b4 {[%emt 0:30:28]} 42. Rxa7 {[%emt 0:01:45]} Rxc6 {[%emt 0:00:23]} 43. Rb7 {[%emt 0:00:39]} b3 {[%emt 0:00:23]} 44. gxf5 {[%emt 0:01:45]} Bd5 {[%emt 0:00:31]} 45. Rb8 {[%emt 0:01:40]} Rc2+ {[%emt 0:00:13]} 46. Kg3 {[%emt 0:00:41]} b2 {[%emt 0:00:16]} 47. a6 {[%emt 0:01:09]} Ba2 {[%emt 0:02:05]} 48. a7 {[%emt 0:00:25]} b1=Q {[%emt 0:00:27]} 49. Rxb1 {[%emt 0:00:39]} Bd5 {[%emt 0:00:03]} 50. Ra1 {[%emt 0:00:58]} Rc8 {[%emt 0:00:19]} 51. Kg4 {[%emt 0:01:25]} Rg8+ {[%emt 0:00:24]} 52. Kh4 {[%emt 0:01:02]} Ba8 {[%emt 0:00:21]} 53. Rc1 {[%emt 0:01:12]} Bd5 {[%emt 0:02:29]} 54. Rc7 {[%emt 0:02:01]} Ra8 {[%emt 0:00:32]} 55. Kh5 {[%emt 0:01:29]} Kg7 {[%emt 0:01:05]} 56. Rd7 {[%emt 0:01:50]} Bf3+ {[%emt 0:00:26]} 57. Kh4 {[%emt 0:00:22]} Bc6 {[%emt 0:01:08]} 58. Rc7 {[%emt 0:00:05]} Be4 {[%emt 0:00:15]} 59. Kg4 {[%emt 0:00:30]} Rg8 {[%emt 0:01:48]} 60. Rc5 {[%emt 0:00:55]} Kf6+ {[%emt 0:02:19]} 61. Kh5 {[%emt 0:00:24]} Bf3+ {[%emt 0:01:11]} 62. Kh4 {[%emt 0:00:08]} Ra8 {[%emt 0:01:03]} 63. Ra5 {[%emt 0:00:30]} Be4 {[%emt 0:00:25]} 64. Kh5 {[%emt 0:00:21]} Bxf5 {[%emt 0:00:44]} 65. Ra6+ {[%emt 0:08:52]} Be6 {[%emt 0:00:31]} 66. h4 {[%emt 0:02:56]} Kf5 {[%emt 0:00:27]} 67. Kxh6 {[%emt 0:00:21]} Kxf4 {[%emt 0:00:24]} 68. h5 {[%emt 0:02:38]} Bg4 {[%emt 0:00:19]} 69. Kg7 {[%emt 0:00:05]} Bxh5 {[%emt 0:00:22]} 70. Ra4+ {[%emt 0:01:36]} Kg5 {[%emt 0:00:13]} 71. Ra5+ {[%emt 0:01:47]} f5 {[%emt 0:00:07]} 72. Ra6 {[%emt 0:02:10]} Kg4 {[%emt 0:01:17]} 73. Kf6 {[%emt 0:03:04]} f4 {[%emt 0:00:20]} 74. Ke7 {[%emt 0:01:12]} Kg3 {[%emt 0:00:16]} 75. Ra2 {[%emt 0:00:33]} f3 {[%emt 0:00:11]} 76. Kd6 {[%emt 0:00:30]} f2 {[%emt 0:00:17]} 77. Ra1 {[%emt 0:00:14]} Bf3 {[%emt 0:00:05]} 78. Kc7 {[%emt 0:01:12]} Kg2 {[%emt 0:00:18]} 79. Kb6 {[%emt 0:01:10]} f1=Q {[%emt 0:00:25]} 80. Rxf1 {[%emt 0:00:09]} Kxf1 {[%emt 0:00:10]} 81. Ka6 {[%emt 0:00:47]} Be2+ {[%emt 0:00:16]} 82. Kb7 {[%emt 0:00:27]} Bf3+ {[%emt 0:00:36]} 83. Ka6 {[%emt 0:00:03]} Rf8 {[%emt 0:00:28]} 84. Ka5 {[%emt 0:02:18]} Rf6 {[%emt 0:00:10]} 85. Kb4 {[%emt 0:01:12]} Ra6 {[%emt 0:00:17]} 86. a8=N {[%emt 0:01:41]} Rxa8 {[%emt 0:00:30]} 87. Kc5 {[%emt 0:00:30]} Rd8 {[%emt 0:00:15]} 88. Kb6 {[%emt 0:00:16]} Rc8 {[%emt 0:00:01]} 89. Kb5 {[%emt 0:00:08]} Ke2 {[%emt 0:01:16]} 90. Kb6 {[%emt 0:00:04]} Kd3 {[%emt 0:00:45]} 91. Kb5 {[%emt 0:00:10]} Rc1 {[%emt 0:00:31]} 92. Kb4 {[%emt 0:00:04]} Bh5 {[%emt 0:00:20]} 93. Kb3 {[%emt 0:00:09]} Rb1+ {[%emt 0:00:22]} 94. Ka2 {[%emt 0:00:03]} Kc2 {[%emt 0:00:26]} 95. Ka3 {[%emt 0:00:04]} Rb8 {[%emt 0:00:45]} 96. Ka4 {[%emt 0:00:03]} Rb1 {[%emt 0:00:17]} 97. Ka3 {[%emt 0:00:11]} Be8 {[%emt 0:00:12]} 98. Ka2 {[%emt 0:00:02]} Rb8 {[%emt 0:00:15]} 99. Ka3 {[%emt 0:00:04]} Kc3 {[%emt 0:00:15]} 100. Ka2 {[%emt 0:00:03]} Kc2 {[%emt 0:00:20]} 101. Ka3 {[%emt 0:00:44]} Kc3 {[%emt 0:00:32]} 102. Ka2 {[%emt 0:00:02]} Bf7+ {[%emt 0:00:37]} 103. Ka1 {[%emt 0:00:12]} Bg6 {[%emt 0:00:23]} 104. Ka2 {[%emt 0:00:20]} Rb6 {[%emt 0:00:43]} 105. Ka1 {[%emt 0:00:44]} Kc2 {[%emt 0:00:07]} 106. Ka2 {[%emt 0:00:19]} 1/2-1/2

[Event "CZE-ch Youth G10-G12-G14 2022"]
[Site "Luhacovice"]
[Date "2022.03.12"]
[Round "1.26"]
[White "Pruskova, Justyna"]
[Black "Kubickova Linda"]
[Result "1/2-1/2"]
[ECO "C52"]
[WhiteElo "1003"]
[BlackElo "1000"]
[Annotator "NA RC"]
[PlyCount "80"]
[EventDate "2022.03.12"]
[EventType "swiss"]
[EventCountry "CZE"]
[SourceTitle "playchess.com"]
[Source "ChessBase"]
[SourceQuality "1"]
[TimeControl "40/5400+30:1800+30"]

1. e4 {[%emt 0:00:06]} e5 {[%emt 0:00:09]} 2. Nf3 {[%emt 0:00:11]} Nc6 {[%emt 0:00:10]} 3. Bc4 {[%emt 0:00:12]} Bc5 {[%emt 0:00:23]} 4. b4 {[%emt 0:00:10]} Bxb4 {[%emt 0:00:27]} 5. c3 {[%emt 0:00:12]} Ba5 {[%emt 0:00:36]} 6. O-O {[%emt 0:01:01]} Nf6 {[%emt 0:00:21]} 7. d3 {[%emt 0:02:47]} O-O {[%emt 0:01:10]} 8. Bg5 {[%emt 0:00:34]} h6 {[%emt 0:00:44]} 9. Bh4 {[%emt 0:00:20]} d6 {[%emt 0:01:07]} 10. d4 {[%emt 0:01:55]} Nxe4 {[%emt 0:01:39]} 11. Bxd8 {[%emt 0:00:37]} Rxd8 {[%emt 0:00:49]} 12. Bd5 {[%emt 0:00:54]} Bxc3 {[%emt 0:01:23]} 13. Nxc3 {[%emt 0:00:25]} Nxc3 {[%emt 0:00:31]} 14. Qb3 {[%emt 0:01:22]} Nxd4 {[%emt 0:00:42]} 15. Qxc3 {[%emt 0:01:11]} Ne2+ {[%emt 0:00:33]} 16. Kh1 {[%emt 0:00:47]} Nxc3 {[%emt 0:00:14]} 17. Bb3 {[%emt 0:00:51]} Bg4 {[%emt 0:01:43]} 18. Rac1 {[%emt 0:00:55]} Ne2 {[%emt 0:01:15]} 19. Rxc7 {[%emt 0:00:26]} b6 {[%emt 0:01:15]} 20. Rxf7 {[%emt 0:01:28]} Kh8 {[%emt 0:02:35]} 21. Bd5 {[%emt 0:03:35]} Rab8 {[%emt 0:01:56]} 22. Rxa7 {[%emt 0:02:35]} Rf8 {[%emt 0:01:26]} 23. Ra3 {[%emt 0:06:09]} Rbc8 {[%emt 0:02:35]} 24. Nh4 {[%emt 0:01:55]} Kh7 {[%emt 0:02:28]} 25. Be4+ {[%emt 0:01:10]} Kg8 {[%emt 0:00:19]} 26. Ng6 {[%emt 0:01:25]} Rfe8 {[%emt 0:01:21]} 27. Ra7 {[%emt 0:05:13]} Nc3 {[%emt 0:04:16]} 28. Ne7+ {[%emt 0:00:49]} Rxe7 {[%emt 0:01:02]} 29. Rxe7 {[%emt 0:00:12]} Nxe4 {[%emt 0:00:31]} 30. f3 {[%emt 0:00:25]} Nf2+ {[%emt 0:00:56]} 31. Kg1 {[%emt 0:01:22]} Nh3+ {[%emt 0:01:28]} 32. gxh3 {[%emt 0:00:28]} Bxh3 {[%emt 0:00:24]} 33. Rb7 {[%emt 0:02:07]} Bxf1 {[%emt 0:02:18]} 34. Kxf1 {[%emt 0:00:22]} Rc6 {[%emt 0:01:02]} 35. Ke2 {[%emt 0:00:53]} Rc2+ {[%emt 0:01:05]} 36. Ke3 {[%emt 0:00:08]} Rxa2 {[%emt 0:01:58]} 37. Rxb6 {[%emt 0:00:09]} d5 {[%emt 0:00:46]} 38. Re6 {[%emt 0:00:34]} d4+ {[%emt 0:00:51]} 39. Ke4 {[%emt 0:01:05]} Ra5 {[%emt 0:00:48]} 40. Rd6 {[%emt 0:02:25]} Kf7 {[%emt 0:00:52]} 1/2-1/2

[Event "CZE-ch Youth G10-G12-G14 2022"]
[Site "Luhacovice"]
[Date "2022.03.12"]
[Round "1.28"]
[White "Kubatova Ema"]
[Black "Vaclavkova Klara"]
[Result "1/2-1/2"]
[ECO "C44"]
[WhiteElo "1183"]
[BlackElo "1000"]
[Annotator "NA"]
[PlyCount "65"]
[EventDate "2022.03.12"]
[EventType "swiss"]
[EventCountry "CZE"]
[SourceTitle "playchess.com"]
[Source "ChessBase"]
[SourceQuality "1"]
[TimeControl "40/5400+30:1800+30"]

1. e4 {[%emt 0:00:08]} e5 {[%emt 0:00:08]} 2. Nf3 {[%emt 0:00:26]} Nc6 {[%emt 0:00:13]} 3. d4 {[%emt 0:00:57]} f6 {[%emt 0:02:25]} 4. Nc3 {[%emt 0:02:15]} Bb4 {[%emt 0:02:33]} 5. dxe5 {[%emt 0:07:17]} fxe5 {[%emt 0:00:55]} 6. Bd2 {[%emt 0:03:38]} Nf6 {[%emt 0:03:08]} 7. Bd3 {[%emt 0:03:16]} d6 {[%emt 0:02:09]} 8. O-O {[%emt 0:05:40]} Bg4 {[%emt 0:01:21]} 9. a3 {[%emt 0:01:44]} Bc5 {[%emt 0:00:35]} 10. Bg5 {[%emt 0:00:32]} h6 {[%emt 0:00:14]} 11. Bh4 {[%emt 0:02:46]} g5 {[%emt 0:00:14]} 12. Bg3 {[%emt 0:00:24]} Nd4 {[%emt 0:00:28]} 13. Be2 {[%emt 0:01:47]} Qd7 {[%emt 0:00:53]} 14. Nxd4 {[%emt 0:06:22]} Bxe2 {[%emt 0:01:34]} 15. Ndxe2 {[%emt 0:01:01]} O-O-O {[%emt 0:00:52]} 16. b4 {[%emt 0:00:34]} Bb6 {[%emt 0:00:42]} 17. a4 {[%emt 0:02:05]} a6 {[%emt 0:00:27]} 18. Qd2 {[%emt 0:03:45]} Rhg8 {[%emt 0:05:23]} 19. Rab1 {[%emt 0:03:14]} h5 {[%emt 0:00:54]} 20. a5 {[%emt 0:01:29]} Ba7 {[%emt 0:00:12]} 21. b5 {[%emt 0:00:32]} axb5 {[%emt 0:02:37]} 22. Nxb5 {[%emt 0:00:53]} Bc5 {[%emt 0:01:16]} 23. h3 {[%emt 0:02:28]} h4 {[%emt 0:00:41]} 24. Bh2 {[%emt 0:00:26]} g4 {[%emt 0:00:35]} 25. hxg4 {[%emt 0:07:46]} Qxg4 {[%emt 0:00:41]} 26. g3 {[%emt 0:02:08]} hxg3 {[%emt 0:01:12]} 27. Nxg3 {[%emt 0:01:24]} Nxe4 {[%emt 0:00:26]} 28. Qd3 {[%emt 0:00:42]} Nxg3 {[%emt 0:01:33]} 29. Bxg3 {[%emt 0:00:53]} Qxg3+ {[%emt 0:00:18]} 30. Qxg3 {[%emt 0:00:16]} Rxg3+ {[%emt 0:00:09]} 31. Kh2 {[%emt 0:00:15]} Rg6 {[%emt 0:00:24]} 32. Rb3 {[%emt 0:00:38]} Bb4 {[%emt 0:01:52]} 33. Rg3 {[%emt 0:03:11]} 1/2-1/2

[Event "CZE-ch Youth G10-G12-G14 2022"]
[Site "Luhacovice"]
[Date "2022.03.12"]
[Round "1.29"]
[White "Rybackova, Lucie"]
[Black "Dominikova, Denisa"]
[Result "1-0"]
[ECO "C91"]
[WhiteElo "1612"]
[BlackElo "1254"]
[Annotator "NA"]
[PlyCount "134"]
[EventDate "2022.03.12"]
[EventType "swiss"]
[EventCountry "CZE"]
[SourceTitle "playchess.com"]
[Source "ChessBase"]
[SourceQuality "1"]
[TimeControl "40/5400+30:1800+30"]

1. e4 {[%emt 0:00:09]} e5 {[%emt 0:00:10]} 2. Nf3 {[%emt 0:00:33]} Nc6 {[%emt 0:00:38]} 3. Bb5 {[%emt 0:00:29]} a6 {[%emt 0:01:01]} 4. Ba4 {[%emt 0:00:29]} Nf6 {[%emt 0:01:16]} 5. O-O {[%emt 0:01:10]} Be7 {[%emt 0:00:46]} 6. Re1 {[%emt 0:00:44]} b5 {[%emt 0:01:02]} 7. Bb3 {[%emt 0:00:45]} d6 {[%emt 0:01:14]} 8. c3 {[%emt 0:01:09]} O-O {[%emt 0:01:16]} 9. d4 {[%emt 0:02:06]} Bg4 {[%emt 0:05:43]} 10. Be3 {[%emt 0:05:18]} Qd7 {[%emt 0:10:43]} 11. Nbd2 {[%emt 0:15:58]} h6 {[%emt 0:11:30]} 12. Bc2 {[%emt 0:13:26]} Rfe8 {[%emt 0:05:46]} 13. Nf1 {[%emt 0:06:13]} Bd8 {[%emt 0:08:55]} 14. Ng3 {[%emt 0:03:20]} Qc8 {[%emt 0:12:07]} 15. h3 {[%emt 0:02:46]} Bd7 {[%emt 0:02:12]} 16. Qd3 {[%emt 0:15:04]} Qb7 {[%emt 0:09:17]} 17. Rad1 {[%emt 0:07:15]} a5 {[%emt 0:05:53]} 18. b3 {[%emt 0:05:36]} Rb8 {[%emt 0:03:59]} 19. Nd2 {[%emt 0:04:48]} Ne7 {[%emt 0:04:57]} 20. dxe5 {[%emt 0:03:36]} dxe5 {[%emt 0:01:29]} 21. Ndf1 {[%emt 0:03:15]} Ng6 {[%emt 0:03:55]} 22. Bb1 {[%emt 0:02:58]} Re6 {[%emt 0:02:55]} 23. Qc2 {[%emt 0:01:49]} c6 {[%emt 0:01:49]} 24. Bc5 {[%emt 0:01:07]} Bb6 {[%emt 0:00:40]} 25. Bxb6 {[%emt 0:01:14]} Qxb6 {[%emt 0:00:20]} 26. c4 {[%emt 0:00:49]} Rd8 {[%emt 0:02:31]} 27. c5 {[%emt 0:00:15]} Qc7 {[%emt 0:00:27]} 28. Nf5 {[%emt 0:00:19]} Bc8 {[%emt 0:00:49]} 29. Rxd8+ {[%emt 0:00:17]} Qxd8 {[%emt 0:00:08]} 30. Rd1 {[%emt 0:00:04]} Qf8 {[%emt 0:00:45]} 31. Nd6 {[%emt 0:00:27]} Re7 {[%emt 0:00:53]} 32. Rd2 {[%emt 0:01:28]} Ba6 {[%emt 0:00:36]} 33. b4 {[%emt 0:00:22]} axb4 {[%emt 0:00:19]} 34. Qb3 {[%emt 0:00:23]} Rd7 {[%emt 0:00:39]} 35. Qxb4 {[%emt 0:00:23]} Ne8 {[%emt 0:00:37]} 36. Ne3 {[%emt 0:00:35]} Qe7 {[%emt 0:00:20]} 37. Nef5 {[%emt 0:00:15]} Qe6 {[%emt 0:00:11]} 38. Nxe8 {[%emt 0:01:10]} Qxe8 {[%emt 0:00:23]} 39. Rxd7 {[%emt 0:00:13]} Qxd7 {[%emt 0:00:05]} 40. Nd6 {[%emt 0:00:07]} Nf4 {[%emt 0:00:30]} 41. Qa5 {[%emt 0:30:57]} Bc8 {[%emt 0:30:31]} 42. Qa8 {[%emt 0:00:11]} Ne2+ {[%emt 0:00:31]} 43. Kh2 {[%emt 0:00:09]} Nc3 {[%emt 0:00:16]} 44. Bc2 {[%emt 0:00:41]} Kh7 {[%emt 0:01:06]} 45. Qxc8 {[%emt 0:00:11]} Qxc8 {[%emt 0:00:21]} 46. Nxc8 {[%emt 0:00:05]} Nxa2 {[%emt 0:00:07]} 47. Na7 {[%emt 0:00:15]} Nb4 {[%emt 0:00:21]} 48. Bb3 {[%emt 0:00:23]} Kg6 {[%emt 0:00:21]} 49. Nc8 {[%emt 0:00:25]} Kf6 {[%emt 0:00:48]} 50. Nd6 {[%emt 0:00:06]} Nd3 {[%emt 0:00:23]} 51. Nb7 {[%emt 0:02:44]} Nxf2 {[%emt 0:01:13]} 52. Bc2 {[%emt 0:00:08]} Kg5 {[%emt 0:00:58]} 53. Kg1 {[%emt 0:00:12]} Nxe4 {[%emt 0:00:00]} 54. Bxe4 {[%emt 0:00:00]} Kf4 {[%emt 0:00:00]} 55. Bxc6 {[%emt 0:00:00]} b4 {[%emt 0:00:00]} 56. Ba4 {[%emt 0:00:00]} e4 {[%emt 0:00:00]} 57. c6 {[%emt 0:00:00]} e3 {[%emt 0:00:00]} 58. c7 {[%emt 0:00:00]} e2 {[%emt 0:00:00]} 59. Kf2 {[%emt 0:00:00]} b3 {[%emt 0:00:00]} 60. Bxb3 {[%emt 0:00:00]} e1=Q+ {[%emt 0:00:00]} 61. Kxe1 {[%emt 0:00:00]} f5 {[%emt 0:00:00]} 62. c8=Q {[%emt 0:00:00]} g6 {[%emt 0:00:00]} 63. Kf2 {[%emt 0:00:00]} h5 {[%emt 0:00:00]} 64. Qc4+ {[%emt 0:00:00]} Kg5 {[%emt 0:00:00]} 65. h4+ {[%emt 0:00:00]} Kh6 {[%emt 0:00:00]} 66. Qg8 {[%emt 0:00:00]} f4 {[%emt 0:00:00]} 67. Bf7 {[%emt 0:00:00]} f3 {[%emt 0:00:00]} 1-0

[Event "CZE-ch Youth G10-G12-G14 2022"]
[Site "Luhacovice"]
[Date "2022.03.12"]
[Round "1.30"]
[White "Dorazilova, Kristyna"]
[Black "Janouskova, Adela"]
[Result "1/2-1/2"]
[ECO "B21"]
[WhiteElo "1240"]
[BlackElo "1585"]
[Annotator "NA"]
[PlyCount "66"]
[EventDate "2022.03.12"]
[EventType "swiss"]
[EventCountry "CZE"]
[SourceTitle "playchess.com"]
[Source "ChessBase"]
[SourceQuality "1"]
[TimeControl "40/5400+30:1800+30"]

1. e4 {[%emt 0:00:03]} c5 {[%emt 0:00:06]} 2. Nc3 {[%emt 0:00:06]} Nc6 {[%emt 0:00:57]} 3. Bb5 {[%emt 0:00:12]} g6 {[%emt 0:03:14]} 4. Bxc6 {[%emt 0:00:11]} dxc6 {[%emt 0:01:21]} 5. f4 {[%emt 0:00:06]} Bg7 {[%emt 0:00:38]} 6. Nf3 {[%emt 0:00:17]} Nf6 {[%emt 0:02:59]} 7. O-O {[%emt 0:00:17]} O-O {[%emt 0:01:55]} 8. d3 {[%emt 0:00:06]} Qc7 {[%emt 0:09:29]} 9. Qe1 {[%emt 0:01:39]} e6 {[%emt 0:07:28]} 10. Qh4 {[%emt 0:02:45]} Ne8 {[%emt 0:06:23]} 11. Kh1 {[%emt 0:06:17]} Nd6 {[%emt 0:07:14]} 12. Qe1 {[%emt 0:14:09]} Nb5 {[%emt 0:08:25]} 13. Ne2 {[%emt 0:05:13]} Nd4 {[%emt 0:01:24]} 14. Qd1 {[%emt 0:04:00]} Rd8 {[%emt 0:04:09]} 15. Nexd4 {[%emt 0:15:50]} cxd4 {[%emt 0:00:35]} 16. Qe1 {[%emt 0:01:25]} c5 {[%emt 0:01:49]} 17. b3 {[%emt 0:00:49]} Bd7 {[%emt 0:01:36]} 18. Bd2 {[%emt 0:05:34]} Bc6 {[%emt 0:02:35]} 19. Qg3 {[%emt 0:03:40]} Re8 {[%emt 0:07:04]} 20. e5 {[%emt 0:03:29]} Rad8 {[%emt 0:01:42]} 21. a4 {[%emt 0:02:14]} Bd5 {[%emt 0:03:07]} 22. Rae1 {[%emt 0:07:32]} a5 {[%emt 0:03:07]} 23. Re2 {[%emt 0:03:07]} b6 {[%emt 0:00:24]} 24. Ree1 {[%emt 0:00:51]} Qc6 {[%emt 0:02:18]} 25. Re2 {[%emt 0:00:38]} Ra8 {[%emt 0:00:48]} 26. Ree1 {[%emt 0:01:35]} Qd7 {[%emt 0:03:53]} 27. Ra1 {[%emt 0:01:23]} Ra7 {[%emt 0:02:48]} 28. Qe1 {[%emt 0:02:17]} Rea8 {[%emt 0:05:58]} 29. Kg1 {[%emt 0:01:39]} Bc6 {[%emt 0:04:00]} 30. Rf2 {[%emt 0:01:23]} Rc8 {[%emt 0:07:21]} 31. Rf1 {[%emt 0:01:26]} Raa8 {[%emt 0:00:07]} 32. Ra2 {[%emt 0:00:53]} Qd5 {[%emt 0:00:53]} 33. Ra1 {[%emt 0:00:53]} Qd8 {[%emt 0:00:21]} 1/2-1/2

[Event "CZE-ch Youth G10-G12-G14 2022"]
[Site "Luhacovice"]
[Date "2022.03.12"]
[Round "1.31"]
[White "Zadrapova, Amalie"]
[Black "Lackova, Ludmila"]
[Result "0-1"]
[ECO "A29"]
[WhiteElo "1582"]
[BlackElo "1167"]
[Annotator "NA RC"]
[PlyCount "106"]
[EventDate "2022.03.12"]
[EventType "swiss"]
[EventCountry "CZE"]
[SourceTitle "playchess.com"]
[Source "ChessBase"]
[SourceQuality "1"]
[TimeControl "40/5400+30:1800+30"]

1. c4 {[%emt 0:00:04]} e5 {[%emt 0:00:10]} 2. g3 {[%emt 0:00:11]} Nf6 {[%emt 0:00:11]} 3. Bg2 {[%emt 0:00:14]} Nc6 {[%emt 0:00:12]} 4. Nc3 {[%emt 0:00:17]} Bc5 {[%emt 0:00:18]} 5. Nf3 {[%emt 0:01:49]} d6 {[%emt 0:00:25]} 6. O-O {[%emt 0:00:35]} O-O {[%emt 0:00:10]} 7. a3 {[%emt 0:00:58]} a6 {[%emt 0:00:23]} 8. b4 {[%emt 0:00:37]} Ba7 {[%emt 0:00:10]} 9. Bb2 {[%emt 0:02:00]} Be6 {[%emt 0:00:38]} 10. d3 {[%emt 0:00:27]} Qd7 {[%emt 0:00:17]} 11. Re1 {[%emt 0:02:57]} Bh3 {[%emt 0:00:25]} 12. Bh1 {[%emt 0:00:41]} h6 {[%emt 0:02:12]} 13. Qc2 {[%emt 0:04:33]} Rab8 {[%emt 0:07:15]} 14. e3 {[%emt 0:06:36]} Rfe8 {[%emt 0:03:08]} 15. Rac1 {[%emt 0:06:52]} Qe6 {[%emt 0:24:29]} 16. Nd5 {[%emt 0:13:31]} Rec8 {[%emt 0:04:43]} 17. d4 {[%emt 0:06:23]} Bf5 {[%emt 0:08:19]} 18. Nxf6+ {[%emt 0:02:36]} Qxf6 {[%emt 0:02:16]} 19. Qc3 {[%emt 0:07:13]} exd4 {[%emt 0:06:10]} 20. Nxd4 {[%emt 0:05:26]} Nxd4 {[%emt 0:04:34]} 21. exd4 {[%emt 0:00:16]} c6 {[%emt 0:03:43]} 22. Qd2 {[%emt 0:06:03]} Qd8 {[%emt 0:16:26]} 23. Rc3 {[%emt 0:06:46]} Qd7 {[%emt 0:01:51]} 24. Rce3 {[%emt 0:01:12]} Re8 {[%emt 0:05:36]} 25. Qe2 {[%emt 0:04:01]} Rxe3 {[%emt 0:02:06]} 26. Qxe3 {[%emt 0:00:12]} Be6 {[%emt 0:03:32]} 27. Qb3 {[%emt 0:11:29]} Kf8 {[%emt 0:02:35]} 28. d5 {[%emt 0:02:34]} cxd5 {[%emt 0:00:30]} 29. cxd5 {[%emt 0:00:10]} Bf5 {[%emt 0:00:08]} 30. Qc3 {[%emt 0:01:21]} f6 {[%emt 0:00:33]} 31. Be4 {[%emt 0:02:28]} Bxe4 {[%emt 0:00:25]} 32. Rxe4 {[%emt 0:00:04]} Rc8 {[%emt 0:00:29]} 33. Qe1 {[%emt 0:00:16]} Re8 {[%emt 0:00:42]} 34. Rxe8+ {[%emt 0:00:41]} Qxe8 {[%emt 0:00:11]} 35. Kf1 {[%emt 0:00:25]} Qb5+ {[%emt 0:00:41]} 36. Kg1 {[%emt 0:01:26]} Qxd5 {[%emt 0:00:12]} 37. Qc1 {[%emt 0:00:17]} Qc6 {[%emt 0:00:23]} 38. Qd2 {[%emt 0:00:36]} Kf7 {[%emt 0:01:16]} 39. Qd1 {[%emt 0:01:00]} Qb6 {[%emt 0:00:24]} 40. Qh5+ {[%emt 0:00:23]} Kf8 {[%emt 0:00:15]} 41. Qf5 {[%emt 0:30:27]} Qc7 {[%emt 0:30:34]} 42. Qe4 {[%emt 0:01:07]} Qe7 {[%emt 0:00:26]} 43. Qb1 {[%emt 0:01:29]} Qe2 {[%emt 0:01:35]} 44. Kg2 {[%emt 0:00:58]} Qxf2+ {[%emt 0:00:17]} 45. Kh3 {[%emt 0:00:04]} Qe3 {[%emt 0:00:52]} 46. Qf5 {[%emt 0:02:29]} Qe8 {[%emt 0:00:43]} 47. Qg4 {[%emt 0:00:00]} d5 {[%emt 0:00:00]} 48. Qf5 {[%emt 0:00:00]} d4 {[%emt 0:00:00]} 49. Qd5 {[%emt 0:00:00]} Qb5 {[%emt 0:00:00]} 50. Qd8+ {[%emt 0:00:00]} Kf7 {[%emt 0:00:00]} 51. Qc7+ {[%emt 0:00:00]} Kg6 {[%emt 0:00:00]} 52. Qc8 {[%emt 0:00:00]} Qf5+ {[%emt 0:00:00]} 53. Qxf5+ {[%emt 0:00:00]} Kxf5 {[%emt 0:00:00]} 0-1

[Event "CZE-ch Youth G10-G12-G14 2022"]
[Site "Luhacovice"]
[Date "2022.03.12"]
[Round "1.32"]
[White "Stavova, Marketa"]
[Black "Dudkova, Josefina"]
[Result "0-1"]
[ECO "B01"]
[WhiteElo "1146"]
[BlackElo "1545"]
[Annotator "NA"]
[PlyCount "40"]
[EventDate "2022.03.12"]
[EventType "swiss"]
[EventCountry "CZE"]
[SourceTitle "playchess.com"]
[Source "ChessBase"]
[SourceQuality "1"]
[TimeControl "40/5400+30:1800+30"]

1. e4 {[%emt 0:00:05]} d5 {[%emt 0:00:13]} 2. exd5 {[%emt 0:00:39]} Nf6 {[%emt 0:00:11]} 3. Nf3 {[%emt 0:00:57]} Qxd5 {[%emt 0:00:29]} 4. Nc3 {[%emt 0:00:49]} Qh5 {[%emt 0:00:31]} 5. Be2 {[%emt 0:01:16]} Bg4 {[%emt 0:00:49]} 6. d3 {[%emt 0:01:44]} Nc6 {[%emt 0:01:03]} 7. Be3 {[%emt 0:01:06]} O-O-O {[%emt 0:01:30]} 8. Qd2 {[%emt 0:01:03]} e5 {[%emt 0:01:58]} 9. O-O-O {[%emt 0:02:28]} e4 {[%emt 0:09:00]} 10. h3 {[%emt 0:02:00]} Bxf3 {[%emt 0:22:03]} 11. gxf3 {[%emt 0:22:17]} exf3 {[%emt 0:19:34]} 12. Bf1 {[%emt 0:00:30]} Bb4 {[%emt 0:00:30]} 13. Kb1 {[%emt 0:00:30]} Nd5 {[%emt 0:00:30]} 14. Qe1 {[%emt 0:00:30]} Nxc3+ {[%emt 0:00:30]} 15. bxc3 {[%emt 0:00:30]} Ba3 {[%emt 0:00:30]} 16. Ka1 {[%emt 0:00:30]} Qa5 {[%emt 0:00:30]} 17. Rb1 {[%emt 0:00:30]} b5 {[%emt 0:00:30]} 18. Bd2 {[%emt 0:00:30]} Rhe8 {[%emt 0:00:30]} 19. Qd1 {[%emt 0:00:30]} b4 {[%emt 0:00:30]} 20. c4 {[%emt 0:00:01]} Qe5+ {[%emt 0:01:48]} 0-1